[Event "*** MasterClass Titled Tuesday Blitz"]
[Site "Chess.com"]
[Date "2017.12.05"]
[Round "8"]
[White "JSPrepz"]
[Black "Alexander_Moskalenko"]
[Result "0-1"]
[WhiteElo "2569"]
[BlackElo "2747"]
[TimeControl "180+2"]
[EndTime "15:57:23 PST"]
[Termination "Alexander_Moskalenko won by checkmate"]

1. e4 {[%clk 0:03:01.9]} 1... c5 {[%clk 0:02:59.7]} 2. Nf3 {[%clk 0:03:02.8]}
2... Nc6 {[%clk 0:03:01.6]} 3. Bb5 {[%clk 0:02:58.7]} 3... Nf6 {[%clk
0:02:58.7]} 4. Nc3 {[%clk 0:02:59.5]} 4... Qc7 {[%clk 0:02:58.3]} 5. O-O {[%clk
0:02:57.2]} 5... Nd4 {[%clk 0:02:58.5]} 6. Ba4 {[%clk 0:02:50.5]} 6... a6 {[%clk
0:02:54.5]} 7. d3 {[%clk 0:02:48.2]} 7... b5 {[%clk 0:02:54.8]} 8. Bb3 {[%clk
0:02:48.2]} 8... Nxb3 {[%clk 0:02:56.4]} 9. axb3 {[%clk 0:02:49.2]} 9... Bb7
{[%clk 0:02:58]} 10. Bg5 {[%clk 0:02:47.3]} 10... e6 {[%clk 0:02:56.8]} 11. e5
{[%clk 0:02:44]} 11... Nd5 {[%clk 0:02:55.9]} 12. Ne4 {[%clk 0:02:45.2]} 12...
h6 {[%clk 0:02:47.9]} 13. Bh4 {[%clk 0:02:46.5]} 13... Bc6 {[%clk 0:02:41.1]}
14. Qd2 {[%clk 0:02:36.9]} 14... Qb7 {[%clk 0:02:37.5]} 15. Rfe1 {[%clk
0:02:37.8]} 15... g5 {[%clk 0:02:32.8]} 16. Bg3 {[%clk 0:02:37.5]} 16... Be7
{[%clk 0:02:34.1]} 17. h4 {[%clk 0:02:34.5]} 17... g4 {[%clk 0:02:31.4]} 18. Nh2
{[%clk 0:02:35.8]} 18... h5 {[%clk 0:02:33]} 19. c4 {[%clk 0:02:37]} 19... Nb4
{[%clk 0:02:29.4]} 20. Bf4 {[%clk 0:02:33.5]} 20... bxc4 {[%clk 0:02:22.5]} 21.
bxc4 {[%clk 0:02:32.6]} 21... Bxe4 {[%clk 0:02:20.7]} 22. Rxe4 {[%clk
0:02:32.7]} 22... Bxh4 {[%clk 0:02:22.1]} 23. f3 {[%clk 0:02:24.3]} 23... Be7
{[%clk 0:02:18.7]} 24. fxg4 {[%clk 0:02:25.1]} 24... h4 {[%clk 0:02:20.3]} 25.
Rf1 {[%clk 0:02:22.3]} 25... h3 {[%clk 0:02:21.5]} 26. g3 {[%clk 0:02:14.8]}
26... Nc6 {[%clk 0:02:21.7]} 27. Bg5 {[%clk 0:02:13]} 27... Bxg5 {[%clk
0:02:17.8]} 28. Qxg5 {[%clk 0:02:14.9]} 28... Qxb2 {[%clk 0:02:19.3]} 29. Rf2
{[%clk 0:02:12.2]} 29... Qb1+ {[%clk 0:02:20]} 30. Nf1 {[%clk 0:02:08.5]} 30...
Qxd3 {[%clk 0:02:21.4]} 31. Re3 {[%clk 0:01:53.5]} 31... Qg6 {[%clk 0:02:22.1]}
32. Qf4 {[%clk 0:01:51.8]} 32... a5 {[%clk 0:02:21.9]} 33. Nd2 {[%clk 0:01:49]}
33... a4 {[%clk 0:02:17]} 34. Ne4 {[%clk 0:01:50.4]} 34... h2+ {[%clk 0:02:14]}
35. Kh1 {[%clk 0:01:48.9]} 35... a3 {[%clk 0:02:08.1]} 36. Ra2 {[%clk
0:01:42.7]} 36... Ke7 {[%clk 0:01:56.9]} 37. Rexa3 {[%clk 0:01:38.9]} 37... Rxa3
{[%clk 0:01:52.8]} 38. Rxa3 {[%clk 0:01:40.8]} 38... Rb8 {[%clk 0:01:53.7]} 39.
Ra1 {[%clk 0:01:36.1]} 39... Rb2 {[%clk 0:01:49.2]} 40. Rf1 {[%clk 0:01:37.2]}
40... Kd8 {[%clk 0:01:41.9]} 41. g5 {[%clk 0:01:11.5]} 41... Kc8 {[%clk
0:01:42.3]} 42. Nd6+ {[%clk 0:01:10.4]} 42... Kc7 {[%clk 0:01:39.8]} 43. Qxf7
{[%clk 0:01:10.3]} 43... Qc2 {[%clk 0:01:35.4]} 44. Qf3 {[%clk 0:01:03.1]} 44...
Nxe5 {[%clk 0:01:30.8]} 45. Ne8+ {[%clk 0:01:04.5]} 45... Kb6 {[%clk 0:01:23]}
46. Qa8 {[%clk 0:01:04.6]} 46... Nc6 {[%clk 0:01:19.6]} 47. Qa3 {[%clk
0:00:57.1]} 47... Qg2# {[%clk 0:01:19.8]} 0-1

[Event "*** MasterClass Titled Tuesday Blitz"]
[Site "Chess.com"]
[Date "2017.12.05"]
[Round "8"]
[White "LuisFSiles"]
[Black "ChessMavenYeti"]
[Result "1-0"]
[WhiteElo "2223"]
[BlackElo "2069"]
[TimeControl "180+2"]
[EndTime "15:57:24 PST"]
[Termination "LuisFSiles won by resignation"]

1. d4 {[%clk 0:03:01.9]} 1... e6 {[%clk 0:03:00.4]} 2. e4 {[%clk 0:02:59.1]}
2... d5 {[%clk 0:03:01.4]} 3. Nd2 {[%clk 0:03:00]} 3... h6 {[%clk 0:03:01.5]} 4.
Ngf3 {[%clk 0:02:59.7]} 4... Nf6 {[%clk 0:03:02.2]} 5. Bd3 {[%clk 0:02:59.7]}
5... c5 {[%clk 0:03:02.7]} 6. c3 {[%clk 0:03:00.2]} 6... Nc6 {[%clk 0:03:01.9]}
7. e5 {[%clk 0:03:01.2]} 7... Nd7 {[%clk 0:03:02.7]} 8. O-O {[%clk 0:03:01.9]}
8... g5 {[%clk 0:03:02.6]} 9. c4 {[%clk 0:02:42.2]} 9... dxc4 {[%clk 0:02:56.9]}
10. Nxc4 {[%clk 0:02:38.5]} 10... cxd4 {[%clk 0:02:44.7]} 11. Qe2 {[%clk
0:02:30]} 11... g4 {[%clk 0:02:40.9]} 12. Nfd2 {[%clk 0:02:28.5]} 12... h5
{[%clk 0:02:41]} 13. f3 {[%clk 0:02:22]} 13... Rg8 {[%clk 0:02:26.9]} 14. fxg4
{[%clk 0:02:19.7]} 14... Rxg4 {[%clk 0:02:26.8]} 15. h3 {[%clk 0:02:17.3]} 15...
Rg3 {[%clk 0:02:03.5]} 16. Ne4 {[%clk 0:01:54.2]} 16... Rxd3 {[%clk 0:01:57.9]}
17. Ned6+ {[%clk 0:01:43.9]} 17... Bxd6 {[%clk 0:01:57.6]} 18. Nxd6+ {[%clk
0:01:45.8]} 18... Kf8 {[%clk 0:01:59]} 19. Rxf7+ {[%clk 0:01:46.2]} 19... Kg8
{[%clk 0:01:59.9]} 20. Qxd3 {[%clk 0:01:38.6]} 20... Nf8 {[%clk 0:01:56.8]} 21.
Bh6 {[%clk 0:01:33.1]} 21... Nxe5 {[%clk 0:01:55.5]} 22. Qg3+ {[%clk 0:01:26.4]}
22... Nfg6 {[%clk 0:01:52.9]} 23. Rf8+ {[%clk 0:01:09.4]} 23... Qxf8 {[%clk
0:01:49.3]} 24. Bxf8 {[%clk 0:01:11]} 24... Kxf8 {[%clk 0:01:50.9]} 25. Rf1+
{[%clk 0:01:10.8]} 25... Ke7 {[%clk 0:01:51.9]} 26. Nc4 {[%clk 0:01:08]} 26...
Nxc4 {[%clk 0:01:50]} 27. Qxg6 {[%clk 0:01:08.7]} 27... Ne3 {[%clk 0:01:49.1]}
28. Qg7+ {[%clk 0:01:06.3]} 28... Kd6 {[%clk 0:01:49.6]} 29. Qxd4+ {[%clk
0:01:07.3]} 29... Nd5 {[%clk 0:01:50]} 30. b4 {[%clk 0:01:02]} 30... Bd7 {[%clk
0:01:49.6]} 31. Qc5+ {[%clk 0:01:02.8]} 31... Ke5 {[%clk 0:01:49.5]} 32. Re1+
{[%clk 0:01:02.4]} 32... Kf6 {[%clk 0:01:48.6]} 33. Qd6 {[%clk 0:00:58.6]} 33...
Rd8 {[%clk 0:01:43.6]} 34. Rxe6+ {[%clk 0:00:52.7]} 34... Bxe6 {[%clk
0:01:42.7]} 35. Qxd8+ {[%clk 0:00:54.3]} 35... Ke5 {[%clk 0:01:39.8]} 36. Qb8+
{[%clk 0:00:54.2]} 36... Kd4 {[%clk 0:01:38.8]} 37. Qxa7+ {[%clk 0:00:53.7]}
37... Kc4 {[%clk 0:01:36.9]} 38. Qc5+ {[%clk 0:00:54.1]} 38... Kd3 {[%clk
0:01:36.3]} 39. a4 {[%clk 0:00:50]} 39... Ke4 {[%clk 0:01:31.7]} 40. a5 {[%clk
0:00:49.5]} 40... Ke5 {[%clk 0:01:31.9]} 41. b5 {[%clk 0:00:50.4]} 41... Ke4
{[%clk 0:01:30.8]} 42. a6 {[%clk 0:00:51.2]} 42... bxa6 {[%clk 0:01:32.2]} 43.
bxa6 {[%clk 0:00:52.5]} 43... Nf4 {[%clk 0:01:33.5]} 44. a7 {[%clk 0:00:43.4]}
44... Bd5 {[%clk 0:01:30.8]} 45. Qxd5+ {[%clk 0:00:43.4]} 45... Kxd5 {[%clk
0:01:32]} 46. a8=Q+ {[%clk 0:00:44.9]} 46... Ke5 {[%clk 0:01:33.6]} 47. Qf3
{[%clk 0:00:45.5]} 47... h4 {[%clk 0:01:34.5]} 48. Qg4 {[%clk 0:00:43.9]} 48...
Ke4 {[%clk 0:01:34.2]} 49. Qxh4 {[%clk 0:00:44.5]} 49... Ke3 {[%clk 0:01:36.1]}
50. Qxf4+ {[%clk 0:00:45.5]} 50... Kxf4 {[%clk 0:01:37.2]} 51. Kf2 {[%clk
0:00:46.8]} 1-0

[Event "*** MasterClass Titled Tuesday Blitz"]
[Site "Chess.com"]
[Date "2017.12.05"]
[Round "8"]
[White "nurmiTV"]
[Black "Saitama_Hero"]
[Result "0-1"]
[WhiteElo "2465"]
[BlackElo "2137"]
[TimeControl "180+2"]
[EndTime "15:57:26 PST"]
[Termination "Saitama_Hero won by checkmate"]

1. c4 {[%clk 0:03:00.9]} 1... Nf6 {[%clk 0:02:59.8]} 2. Nc3 {[%clk 0:03:00.4]}
2... d5 {[%clk 0:02:58.6]} 3. cxd5 {[%clk 0:03:00.7]} 3... Nxd5 {[%clk
0:03:00.5]} 4. e3 {[%clk 0:03:01.9]} 4... g6 {[%clk 0:02:59.7]} 5. Nf3 {[%clk
0:03:02]} 5... Bg7 {[%clk 0:02:59.4]} 6. h4 {[%clk 0:03:01.9]} 6... O-O {[%clk
0:02:50.8]} 7. h5 {[%clk 0:03:02.1]} 7... c5 {[%clk 0:02:16.7]} 8. Ng5 {[%clk
0:02:51.1]} 8... e6 {[%clk 0:01:55]} 9. Nxh7 {[%clk 0:01:53.7]} 9... Kxh7 {[%clk
0:01:52.9]} 10. hxg6+ {[%clk 0:01:54.6]} 10... Kg8 {[%clk 0:01:51]} 11. gxf7+
{[%clk 0:01:41.9]} 11... Rxf7 {[%clk 0:01:51.1]} 12. Bd3 {[%clk 0:01:42.1]}
12... Nb4 {[%clk 0:01:30.5]} 13. Bh7+ {[%clk 0:01:29.9]} 13... Kf8 {[%clk
0:01:29.4]} 14. d3 {[%clk 0:01:28.7]} 14... N8c6 {[%clk 0:01:05]} 15. a3 {[%clk
0:01:26.1]} 15... Nd5 {[%clk 0:01:04.4]} 16. Ne4 {[%clk 0:01:24.7]} 16... Nf6
{[%clk 0:00:58.8]} 17. Bg6 {[%clk 0:01:15.2]} 17... Rd7 {[%clk 0:00:51.4]} 18.
Nxc5 {[%clk 0:01:06.4]} 18... Rd5 {[%clk 0:00:43.8]} 19. b4 {[%clk 0:00:46.4]}
19... b6 {[%clk 0:00:34.6]} 20. Nb3 {[%clk 0:00:47.1]} 20... Ne5 {[%clk
0:00:34]} 21. Bh7 {[%clk 0:00:21.4]} 21... Nxd3+ {[%clk 0:00:30.4]} 22. Kf1
{[%clk 0:00:21.8]} 22... Ba6 {[%clk 0:00:26.9]} 23. Kg1 {[%clk 0:00:21.5]} 23...
Nf4 {[%clk 0:00:24.8]} 24. Qf3 {[%clk 0:00:17.1]} 24... Ne2+ {[%clk 0:00:22.2]}
25. Kh2 {[%clk 0:00:18]} 25... Rh5+ {[%clk 0:00:22.2]} 26. Qxh5 {[%clk
0:00:16.6]} 26... Nxh5 {[%clk 0:00:22.2]} 27. Ra2 {[%clk 0:00:17.5]} 27... Qh4#
{[%clk 0:00:22.1]} 0-1

[Event "*** MasterClass Titled Tuesday Blitz"]
[Site "Chess.com"]
[Date "2017.12.05"]
[Round "8"]
[White "FMJoseHerrera"]
[Black "Winehouse83"]
[Result "0-1"]
[WhiteElo "2439"]
[BlackElo "2401"]
[TimeControl "180+2"]
[EndTime "15:57:35 PST"]
[Termination "Winehouse83 won by resignation"]

1. Nf3 {[%clk 0:03:00.3]} 1... Nf6 {[%clk 0:03:00.5]} 2. g3 {[%clk 0:03:02.2]}
2... g6 {[%clk 0:03:01.9]} 3. Bg2 {[%clk 0:03:04]} 3... Bg7 {[%clk 0:03:03.5]}
4. h4 {[%clk 0:03:05.9]} 4... h5 {[%clk 0:02:56.2]} 5. d3 {[%clk 0:03:07.8]}
5... d6 {[%clk 0:02:54.8]} 6. Nc3 {[%clk 0:03:08.3]} 6... c5 {[%clk 0:02:51.8]}
7. e4 {[%clk 0:03:08.6]} 7... Nc6 {[%clk 0:02:52.6]} 8. O-O {[%clk 0:03:07.5]}
8... Bg4 {[%clk 0:02:53.6]} 9. Bg5 {[%clk 0:02:59.7]} 9... Nd4 {[%clk
0:02:48.5]} 10. Be3 {[%clk 0:02:42.1]} 10... Nd7 {[%clk 0:02:47.5]} 11. Nd5
{[%clk 0:02:29.1]} 11... e6 {[%clk 0:02:22.6]} 12. Nf4 {[%clk 0:02:20.4]} 12...
Ne5 {[%clk 0:01:41.8]} 13. Bxd4 {[%clk 0:02:19.3]} 13... cxd4 {[%clk 0:01:42.9]}
14. Kh2 {[%clk 0:02:15.2]} 14... O-O {[%clk 0:01:41.4]} 15. Nh3 {[%clk
0:02:14.9]} 15... f5 {[%clk 0:01:32.5]} 16. exf5 {[%clk 0:01:52.8]} 16... Rxf5
{[%clk 0:01:24.5]} 17. Nhg5 {[%clk 0:01:54.2]} 17... Rxg5 {[%clk 0:01:17.4]} 18.
hxg5 {[%clk 0:01:53.2]} 18... Qf8 {[%clk 0:01:18.1]} 19. Nxe5 {[%clk 0:00:36.8]}
19... Bxd1 {[%clk 0:01:16.9]} 20. Nxg6 {[%clk 0:00:37.9]} 20... Qe8 {[%clk
0:01:08.5]} 21. Nf4 {[%clk 0:00:35.2]} 21... Bg4 {[%clk 0:01:05.3]} 22. Rae1
{[%clk 0:00:36]} 22... Be5 {[%clk 0:00:56.4]} 23. b3 {[%clk 0:00:24.3]} 23...
Bxf4 {[%clk 0:00:52.1]} 24. gxf4 {[%clk 0:00:26.2]} 24... Qf7 {[%clk 0:00:52.9]}
25. Kg3 {[%clk 0:00:27.3]} 25... Rf8 {[%clk 0:00:53.4]} 26. Re4 {[%clk
0:00:22.3]} 26... e5 {[%clk 0:00:54.5]} 27. fxe5 {[%clk 0:00:15.5]} 27... dxe5
{[%clk 0:00:55.6]} 28. f4 {[%clk 0:00:16]} 28... exf4+ {[%clk 0:00:53.7]} 29.
Rexf4 {[%clk 0:00:17.1]} 29... Qc7 {[%clk 0:00:54.9]} 30. Bd5+ {[%clk
0:00:17.4]} 30... Kg7 {[%clk 0:00:55.8]} 31. Bc4 {[%clk 0:00:18.6]} 31... Rxf4
{[%clk 0:00:55.9]} 32. Rxf4 {[%clk 0:00:20.5]} 32... Qe5 {[%clk 0:00:57]} 33.
Bd5 {[%clk 0:00:17.1]} 33... Qxd5 {[%clk 0:00:56.6]} 34. Re4 {[%clk 0:00:17.1]}
34... Qxg5 {[%clk 0:00:56.7]} 0-1

[Event "*** MasterClass Titled Tuesday Blitz"]
[Site "Chess.com"]
[Date "2017.12.05"]
[Round "8"]
[White "saikrishnaReturns"]
[Black "Mistheoretical"]
[Result "1-0"]
[WhiteElo "2424"]
[BlackElo "2265"]
[TimeControl "180+2"]
[EndTime "15:57:39 PST"]
[Termination "saikrishnaReturns won by resignation"]

1. e4 {[%clk 0:03:01.5]} 1... e6 {[%clk 0:02:58.6]} 2. Nc3 {[%clk 0:03:03]} 2...
d5 {[%clk 0:02:59.6]} 3. d4 {[%clk 0:03:04.6]} 3... Bb4 {[%clk 0:03:00.2]} 4. e5
{[%clk 0:03:04.5]} 4... Ne7 {[%clk 0:03:00.6]} 5. Qg4 {[%clk 0:03:04.4]} 5...
Nf5 {[%clk 0:03:00.5]} 6. Bd3 {[%clk 0:03:04.1]} 6... h5 {[%clk 0:03:00.3]} 7.
Qf4 {[%clk 0:03:04.9]} 7... Qh4 {[%clk 0:03:01.1]} 8. Bxf5 {[%clk 0:03:01.4]}
8... Qxf4 {[%clk 0:03:01.1]} 9. Bxf4 {[%clk 0:03:03]} 9... Bxc3+ {[%clk
0:03:02.8]} 10. bxc3 {[%clk 0:03:03.3]} 10... exf5 {[%clk 0:03:04.7]} 11. h4
{[%clk 0:03:01.3]} 11... Be6 {[%clk 0:03:03.8]} 12. Nh3 {[%clk 0:03:00.5]} 12...
Nc6 {[%clk 0:03:04.3]} 13. Rb1 {[%clk 0:03:01.3]} 13... Na5 {[%clk 0:03:04.5]}
14. Bd2 {[%clk 0:02:58.3]} 14... b6 {[%clk 0:02:53.4]} 15. Nf4 {[%clk
0:02:57.1]} 15... g6 {[%clk 0:02:47.3]} 16. Ke2 {[%clk 0:02:56.6]} 16... Nc4
{[%clk 0:02:46.3]} 17. Rb4 {[%clk 0:02:55.4]} 17... Kd7 {[%clk 0:02:42]} 18.
Rxc4 {[%clk 0:02:54]} 18... dxc4 {[%clk 0:02:37.5]} 19. d5 {[%clk 0:02:55.9]}
19... Rhg8 {[%clk 0:02:27.7]} 20. dxe6+ {[%clk 0:02:38]} 20... fxe6 {[%clk
0:02:29.6]} 21. Nh3 {[%clk 0:02:39.5]} 21... Kc6 {[%clk 0:02:06.1]} 22. Bg5
{[%clk 0:02:41.4]} 22... Rg7 {[%clk 0:01:21.5]} 23. Bf6 {[%clk 0:02:37.5]} 23...
Rgg8 {[%clk 0:01:17.5]} 24. Nf4 {[%clk 0:02:38]} 24... Rae8 {[%clk 0:01:17]} 25.
Rd1 {[%clk 0:02:35.9]} 25... b5 {[%clk 0:01:13.7]} 26. Kd2 {[%clk 0:02:35.4]}
26... Rd8+ {[%clk 0:01:04.2]} 27. Bxd8 {[%clk 0:02:34.5]} 27... Rxd8+ {[%clk
0:01:06.1]} 28. Ke2 {[%clk 0:02:33.5]} 28... Re8 {[%clk 0:00:55.2]} 29. Nxg6
{[%clk 0:02:32.7]} 29... a5 {[%clk 0:00:53.2]} 30. Nf4 {[%clk 0:02:30.7]} 30...
b4 {[%clk 0:00:52.7]} 31. g3 {[%clk 0:02:25.6]} 31... Kb5 {[%clk 0:00:38.6]} 32.
Nxh5 {[%clk 0:02:24.5]} 32... c5 {[%clk 0:00:37.8]} 33. Nf4 {[%clk 0:02:15.1]}
33... Ka4 {[%clk 0:00:36.9]} 34. Rd6 {[%clk 0:02:10.9]} 34... Ka3 {[%clk
0:00:34.7]} 35. Rxe6 {[%clk 0:02:11.6]} 35... Rc8 {[%clk 0:00:31.1]} 36. Ra6
{[%clk 0:02:10.6]} 36... a4 {[%clk 0:00:29.9]} 37. Nd5 {[%clk 0:02:09.6]} 37...
b3 {[%clk 0:00:21.4]} 38. axb3 {[%clk 0:02:07.3]} 38... cxb3 {[%clk 0:00:22.4]}
39. cxb3 {[%clk 0:02:08.4]} 39... Kxb3 {[%clk 0:00:24]} 40. e6 {[%clk
0:02:07.2]} 40... a3 {[%clk 0:00:24]} 41. e7 {[%clk 0:02:05.5]} 41... a2 {[%clk
0:00:24]} 42. Ra7 {[%clk 0:02:05.4]} 42... Re8 {[%clk 0:00:20.4]} 43. Kd3 {[%clk
0:02:00.6]} 43... Kb2 {[%clk 0:00:20.4]} 44. Kc4 {[%clk 0:01:59.7]} 44... a1=Q
{[%clk 0:00:04.8]} 45. Rxa1 {[%clk 0:01:58.4]} 45... Kxa1 {[%clk 0:00:06.7]} 46.
Kxc5 {[%clk 0:01:59.4]} 46... f4 {[%clk 0:00:05.3]} 47. gxf4 {[%clk 0:01:59.9]}
47... Kb2 {[%clk 0:00:04.2]} 48. f5 {[%clk 0:02:00.7]} 1-0

[Event "*** MasterClass Titled Tuesday Blitz"]
[Site "Chess.com"]
[Date "2017.12.05"]
[Round "8"]
[White "krzyzan94"]
[Black "StellarChessPro"]
[Result "1-0"]
[WhiteElo "2607"]
[BlackElo "2342"]
[TimeControl "180+2"]
[EndTime "15:57:53 PST"]
[Termination "krzyzan94 won by checkmate"]

1. e4 {[%clk 0:02:56.6]} 1... Nc6 {[%clk 0:03:00.5]} 2. Nf3 {[%clk 0:02:56.6]}
2... e5 {[%clk 0:03:01]} 3. d4 {[%clk 0:02:57.6]} 3... exd4 {[%clk 0:03:01.9]}
4. Nxd4 {[%clk 0:02:59.5]} 4... Bc5 {[%clk 0:03:02.8]} 5. Nxc6 {[%clk
0:02:58.7]} 5... Qf6 {[%clk 0:03:03.5]} 6. Qf3 {[%clk 0:03:00.2]} 6... dxc6
{[%clk 0:03:04.2]} 7. Nc3 {[%clk 0:03:00]} 7... Be6 {[%clk 0:03:04.3]} 8. Qxf6
{[%clk 0:02:52.5]} 8... Nxf6 {[%clk 0:03:04.1]} 9. Bd3 {[%clk 0:02:54.4]} 9...
O-O-O {[%clk 0:03:04.8]} 10. O-O {[%clk 0:02:53.7]} 10... h6 {[%clk 0:03:05.5]}
11. Bf4 {[%clk 0:02:47.1]} 11... Bd4 {[%clk 0:03:02.8]} 12. Nd1 {[%clk 0:02:35]}
12... Rhe8 {[%clk 0:03:00.4]} 13. Re1 {[%clk 0:02:29.7]} 13... Bg4 {[%clk
0:02:53.2]} 14. Ne3 {[%clk 0:02:20.2]} 14... Bxb2 {[%clk 0:02:41.2]} 15. Rab1
{[%clk 0:02:13.6]} 15... Be5 {[%clk 0:02:39.1]} 16. Bxe5 {[%clk 0:02:09]} 16...
Rxe5 {[%clk 0:02:41]} 17. f4 {[%clk 0:02:10.7]} 17... Ree8 {[%clk 0:02:22.1]}
18. e5 {[%clk 0:02:11.9]} 18... Nd5 {[%clk 0:02:14.8]} 19. Nxg4 {[%clk
0:02:10.6]} 19... Nxf4 {[%clk 0:02:14.9]} 20. Bf5+ {[%clk 0:01:54.1]} 20... Kb8
{[%clk 0:02:15.6]} 21. g3 {[%clk 0:01:51.3]} 21... Nd5 {[%clk 0:02:09.6]} 22.
Bd3 {[%clk 0:01:44.6]} 22... a5 {[%clk 0:01:59.3]} 23. a3 {[%clk 0:01:41.2]}
23... Nb6 {[%clk 0:01:40.2]} 24. Re4 {[%clk 0:01:20.4]} 24... Nd7 {[%clk
0:01:32.4]} 25. e6 {[%clk 0:00:51.4]} 25... Rxe6 {[%clk 0:00:38.2]} 26. Rxe6
{[%clk 0:00:50.6]} 26... fxe6 {[%clk 0:00:40.1]} 27. Be4 {[%clk 0:00:48.7]}
27... Nc5 {[%clk 0:00:36.4]} 28. Bxc6 {[%clk 0:00:48.8]} 28... b6 {[%clk
0:00:36.7]} 29. Ne5 {[%clk 0:00:49.6]} 29... Rd2 {[%clk 0:00:36.2]} 30. c4
{[%clk 0:00:37.7]} 30... Re2 {[%clk 0:00:31.8]} 31. Rf1 {[%clk 0:00:37]} 31...
Ka7 {[%clk 0:00:27.4]} 32. Rf8 {[%clk 0:00:36.9]} 32... Nb7 {[%clk 0:00:28.3]}
33. Nd7 {[%clk 0:00:29.1]} 33... Rc2 {[%clk 0:00:25]} 34. Rb8 {[%clk 0:00:29.3]}
34... Rxc4 {[%clk 0:00:22.3]} 35. Rxb7+ {[%clk 0:00:30.4]} 35... Ka6 {[%clk
0:00:21.4]} 36. Nb8# {[%clk 0:00:31.3]} 1-0

[Event "*** MasterClass Titled Tuesday Blitz"]
[Site "Chess.com"]
[Date "2017.12.05"]
[Round "8"]
[White "maciek_92"]
[Black "sandromareco"]
[Result "0-1"]
[WhiteElo "2570"]
[BlackElo "2621"]
[TimeControl "180+2"]
[EndTime "15:58:00 PST"]
[Termination "sandromareco won by checkmate"]

1. c4 {[%clk 0:03:01.9]} 1... e5 {[%clk 0:02:58.6]} 2. Nc3 {[%clk 0:03:02.8]}
2... Nf6 {[%clk 0:02:59.2]} 3. g3 {[%clk 0:03:04]} 3... d5 {[%clk 0:02:58.6]} 4.
cxd5 {[%clk 0:03:05.9]} 4... Nxd5 {[%clk 0:03:00.1]} 5. Bg2 {[%clk 0:03:07.4]}
5... Nb6 {[%clk 0:02:56.6]} 6. e3 {[%clk 0:03:08.3]} 6... Be7 {[%clk 0:02:46.5]}
7. Nge2 {[%clk 0:03:04.1]} 7... O-O {[%clk 0:02:46.2]} 8. O-O {[%clk 0:03:02.4]}
8... Nc6 {[%clk 0:02:46.8]} 9. f4 {[%clk 0:03:03.5]} 9... exf4 {[%clk
0:02:47.7]} 10. Nxf4 {[%clk 0:03:05.4]} 10... Bf5 {[%clk 0:02:31.7]} 11. d4
{[%clk 0:02:55.8]} 11... Qd7 {[%clk 0:02:31.3]} 12. h3 {[%clk 0:02:57]} 12... h6
{[%clk 0:02:27.4]} 13. g4 {[%clk 0:02:55.8]} 13... Bh7 {[%clk 0:02:28.4]} 14. b3
{[%clk 0:02:57]} 14... Rae8 {[%clk 0:02:27.8]} 15. Ncd5 {[%clk 0:02:37.9]} 15...
Nxd5 {[%clk 0:02:25.7]} 16. Nxd5 {[%clk 0:02:39.8]} 16... Bh4 {[%clk 0:02:23.1]}
17. Ba3 {[%clk 0:02:26.9]} 17... Ne7 {[%clk 0:02:17.3]} 18. Nc3 {[%clk 0:02:21]}
18... f5 {[%clk 0:02:07.1]} 19. gxf5 {[%clk 0:01:50.8]} 19... Nxf5 {[%clk
0:02:00.7]} 20. Qg4 {[%clk 0:01:45.2]} 20... Be7 {[%clk 0:02:01.1]} 21. Bb2
{[%clk 0:01:31.5]} 21... Bg5 {[%clk 0:01:40.8]} 22. Nd5 {[%clk 0:01:02.9]} 22...
c6 {[%clk 0:01:36.7]} 23. Nf4 {[%clk 0:01:03.6]} 23... Rxe3 {[%clk 0:01:34.2]}
24. d5 {[%clk 0:01:03.2]} 24... Rg3 {[%clk 0:01:28.9]} 25. Ne6 {[%clk
0:00:50.1]} 25... Rxg4 {[%clk 0:01:26.2]} 26. hxg4 {[%clk 0:00:52]} 26... Rf7
{[%clk 0:01:24.7]} 27. gxf5 {[%clk 0:00:47.4]} 27... Be3+ {[%clk 0:01:16.4]} 28.
Kh1 {[%clk 0:00:45.8]} 28... Rxf5 {[%clk 0:01:14.5]} 29. Rxf5 {[%clk 0:00:44]}
29... Bxf5 {[%clk 0:01:13.9]} 30. Nxg7 {[%clk 0:00:45.2]} 30... Bh3 {[%clk
0:01:14.6]} 31. Bf3 {[%clk 0:00:39.9]} 31... Qf7 {[%clk 0:01:09.1]} 32. Be4
{[%clk 0:00:24.5]} 32... Qf4 {[%clk 0:01:00.9]} 33. Bg2 {[%clk 0:00:03.9]} 33...
Bxg2+ {[%clk 0:00:56.8]} 34. Kxg2 {[%clk 0:00:04.6]} 34... Qg4+ {[%clk
0:00:51.8]} 35. Kh2 {[%clk 0:00:05.9]} 35... Bf4+ {[%clk 0:00:52.7]} 36. Kh1
{[%clk 0:00:06.5]} 36... Qh3+ {[%clk 0:00:53.9]} 37. Kg1 {[%clk 0:00:08.4]}
37... Be3# {[%clk 0:00:55.1]} 0-1

[Event "*** MasterClass Titled Tuesday Blitz"]
[Site "Chess.com"]
[Date "2017.12.05"]
[Round "8"]
[White "Dr_Nezard"]
[Black "MRniceplay"]
[Result "1-0"]
[WhiteElo "2304"]
[BlackElo "2241"]
[TimeControl "180+2"]
[EndTime "15:58:01 PST"]
[Termination "Dr_Nezard won on time"]

1. Nf3 {[%clk 0:02:55.4]} 1... Nf6 {[%clk 0:02:58.9]} 2. g3 {[%clk 0:02:56.3]}
2... g6 {[%clk 0:02:58.1]} 3. Bg2 {[%clk 0:02:57]} 3... Bg7 {[%clk 0:02:58.4]}
4. O-O {[%clk 0:02:58.9]} 4... O-O {[%clk 0:02:58.9]} 5. d4 {[%clk 0:03:00.8]}
5... d5 {[%clk 0:02:59.1]} 6. Ne5 {[%clk 0:03:02]} 6... Nc6 {[%clk 0:02:58.6]}
7. c4 {[%clk 0:02:58.3]} 7... dxc4 {[%clk 0:02:58.2]} 8. Nxc6 {[%clk 0:02:58.4]}
8... bxc6 {[%clk 0:02:59.2]} 9. Bxc6 {[%clk 0:02:48.3]} 9... Bh3 {[%clk
0:02:58.8]} 10. Re1 {[%clk 0:02:40]} 10... Ng4 {[%clk 0:02:40.9]} 11. e3 {[%clk
0:02:20.2]} 11... e5 {[%clk 0:02:29.6]} 12. Bg2 {[%clk 0:01:34]} 12... Bxg2
{[%clk 0:01:35.3]} 13. Kxg2 {[%clk 0:01:35.9]} 13... Nxf2 {[%clk 0:01:21.6]} 14.
Kxf2 {[%clk 0:01:32.4]} 14... exd4 {[%clk 0:01:20.4]} 15. exd4 {[%clk 0:01:26]}
15... Bxd4+ {[%clk 0:01:21.5]} 16. Kg2 {[%clk 0:01:25.4]} 16... c5 {[%clk
0:01:07.8]} 17. Nc3 {[%clk 0:01:23.8]} 17... Re8 {[%clk 0:01:08.3]} 18. Rxe8+
{[%clk 0:01:02.2]} 18... Qxe8 {[%clk 0:01:10.2]} 19. Bf4 {[%clk 0:01:02.4]}
19... f6 {[%clk 0:00:48.2]} 20. h4 {[%clk 0:01:01.9]} 20... Qc6+ {[%clk
0:00:15.2]} 21. Qf3 {[%clk 0:01:00.9]} 21... Qxf3+ {[%clk 0:00:15.6]} 22. Kxf3
{[%clk 0:01:02.8]} 22... Kf7 {[%clk 0:00:16.8]} 23. Be3 {[%clk 0:00:53.4]} 23...
a5 {[%clk 0:00:16.4]} 24. Na4 {[%clk 0:00:53.1]} 24... Rb8 {[%clk 0:00:15.3]}
25. Rd1 {[%clk 0:00:26.7]} 25... Bxe3 {[%clk 0:00:09]} 26. Kxe3 {[%clk
0:00:28.6]} 26... Rb4 {[%clk 0:00:09.2]} 27. Nxc5 {[%clk 0:00:28.3]} 27... Rxb2
{[%clk 0:00:10]} 28. a4 {[%clk 0:00:28.2]} 28... c3 {[%clk 0:00:05.6]} 29. Rc1
{[%clk 0:00:28.6]} 29... Rg2 {[%clk 0:00:04.1]} 30. Kf3 {[%clk 0:00:28.3]} 30...
Ra2 {[%clk 0:00:02]} 31. Rxc3 {[%clk 0:00:29.2]} 1-0